[Event "XXXIII Lower Silesian Cup 2017"]
[Site "Legnica"]
[Date "2017.12.08"]
[Round "2"]
[White "Tomczak, Mikolaj"]
[Black "Grela, Kacper"]
[Result "1/2-1/2"]
[ECO "C42"]
[WhiteElo "2372"]
[BlackElo "2293"]
[Annotator "RC"]
[PlyCount "121"]
[EventDate "2017.??.??"]
[EventType "tourn"]
[EventCountry "POL"]
[SourceTitle "playchess.com"]
[Source "ChessBase"]
[SourceQuality "1"]
[TimeControl "40/5400+30:900+30"]

1. e4 {[%emt 0:00:00]} e5 {[%emt 0:00:22]} 2. Nf3 {[%emt 0:00:00]} Nf6 {[%emt 0:00:05]} 3. Nxe5 {[%emt 0:00:00]} d6 {[%emt 0:00:06]} 4. Nf3 {[%emt 0:00:05]} Nxe4 {[%emt 0:00:07]} 5. Nc3 {[%emt 0:00:26]} Nxc3 {[%emt 0:00:09]} 6. dxc3 {[%emt 0:00:06]} Be7 {[%emt 0:00:14]} 7. Be3 {[%emt 0:00:35]} O-O {[%emt 0:01:02]} 8. Qd2 {[%emt 0:00:57]} Nd7 {[%emt 0:02:27]} 9. O-O-O {[%emt 0:03:19]} Ne5 {[%emt 0:02:09]} 10. h4 {[%emt 0:07:53]} a5 {[%emt 0:12:42]} 11. Kb1 {[%emt 0:04:30]} a4 {[%emt 0:00:32]} 12. a3 {[%emt 0:07:42]} Ra5 {[%emt 0:04:50]} 13. h5 {[%emt 0:10:37]} Bg4 {[%emt 0:11:07]} 14. Be2 {[%emt 0:03:31]} Qc8 {[%emt 0:03:46]} 15. c4 {[%emt 0:14:16]} b6 {[%emt 0:07:02]} 16. h6 {[%emt 0:11:44]} g6 {[%emt 0:02:05]} 17. Nxe5 {[%emt 0:08:18]} Rxe5 {[%emt 0:07:09]} 18. Bxg4 {[%emt 0:03:32]} Qxg4 {[%emt 0:01:44]} 19. Qc3 {[%emt 0:02:15]} f6 {[%emt 0:05:10]} 20. Bd4 {[%emt 0:03:58]} Re6 {[%emt 0:04:53]} 21. f3 {[%emt 0:02:25]} Qf4 {[%emt 0:03:30]} 22. c5 {[%emt 0:04:49]} d5 {[%emt 0:09:04]} 23. cxb6 {[%emt 0:00:19]} cxb6 {[%emt 0:00:45]} 24. Rhe1 {[%emt 0:01:16]} Rxe1 {[%emt 0:03:28]} 25. Rxe1 {[%emt 0:00:28]} Bd8 {[%emt 0:02:30]} 26. Be3 {[%emt 0:03:28]} Qc4 {[%emt 0:02:14]} 27. Qd2 {[%emt 0:01:02]} Bc7 {[%emt 0:02:04]} 28. Bd4 {[%emt 0:01:34]} Qc6 {[%emt 0:03:38]} 29. Re7 {[%emt 0:02:05]} Rf7 {[%emt 0:02:31]} 30. Qe3 {[%emt 0:00:54]} Be5 {[%emt 0:02:03]} 31. Rxf7 {[%emt 0:01:10]} Kxf7 {[%emt 0:00:06]} 32. Bxe5 {[%emt 0:00:59]} fxe5 {[%emt 0:00:03]} 33. Qxe5 {[%emt 0:00:09]} Qc4 {[%emt 0:00:12]} 34. Qe1 {[%emt 0:01:14]} g5 {[%emt 0:02:43]} 35. g4 {[%emt 0:00:56]} Kf6 {[%emt 0:01:07]} 36. Qf2 {[%emt 0:00:38]} b5 {[%emt 0:01:25]} 37. Kc1 {[%emt 0:00:39]} Qf4+ {[%emt 0:01:27]} 38. Kd1 {[%emt 0:00:23]} d4 {[%emt 0:00:03]} 39. Qe2 {[%emt 0:00:43]} Qg3 {[%emt 0:01:05]} 40. Kd2 {[%emt 0:00:00]} Qf4+ {[%emt 0:02:16]} 41. Kd3 {[%emt 0:07:30]} Qc1 {[%emt 0:02:10]} 42. Kxd4 {[%emt 0:05:55]} Qxb2+ {[%emt 0:07:27]} 43. Kd5 {[%emt 0:00:04]} Qa2+ {[%emt 0:00:22]} 44. Kd6 {[%emt 0:00:16]} Kg6 {[%emt 0:01:28]} 45. Qe8+ {[%emt 0:03:26]} Kxh6 {[%emt 0:00:27]} 46. Qf8+ {[%emt 0:00:53]} Kg6 {[%emt 0:00:17]} 47. Qf5+ {[%emt 0:00:12]} Kg7 {[%emt 0:00:06]} 48. Qxg5+ {[%emt 0:00:29]} Kf7 {[%emt 0:00:31]} 49. Qf5+ {[%emt 0:00:31]} Kg7 {[%emt 0:00:28]} 50. Qd3 {[%emt 0:01:06]} Qb2 {[%emt 0:03:46]} 51. Kc5 {[%emt 0:00:36]} b4 {[%emt 0:01:27]} 52. Qd7+ {[%emt 0:00:11]} Kg6 {[%emt 0:00:23]} 53. Qf5+ {[%emt 0:00:18]} Kg7 {[%emt 0:00:15]} 54. Qg5+ {[%emt 0:00:20]} Kf7 {[%emt 0:00:20]} 55. Qf4+ {[%emt 0:00:16]} Kg6 {[%emt 0:00:24]} 56. Qe4+ {[%emt 0:01:19]} Kg5 {[%emt 0:00:58]} 57. Qxb4 {[%emt 0:00:34]} Qxc2+ {[%emt 0:00:08]} 58. Kb5 {[%emt 0:00:24]} Qb3 {[%emt 0:00:46]} 59. Ka5 {[%emt 0:00:42]} Qxf3 {[%emt 0:00:26]} 60. Qxa4 {[%emt 0:00:25]} Qxg4 {[%emt 0:00:24]} 61. Qe8 1/2-1/2

[Event "XXXIII Lower Silesian Cup 2017"]
[Site "Legnica"]
[Date "2017.12.10"]
[Round "5"]
[White "Grela, Kacper"]
[Black "Teclaf, Pawel"]
[Result "1-0"]
[ECO "C03"]
[WhiteElo "2293"]
[BlackElo "2393"]
[Annotator "NA"]
[PlyCount "95"]
[EventDate "2017.??.??"]
[EventType "tourn"]
[EventCountry "POL"]
[SourceTitle "playchess.com"]
[Source "ChessBase"]
[SourceQuality "1"]
[TimeControl "40/5400+30:900+30"]

1. e4 {[%emt 0:00:00]} e6 {[%emt 0:00:03]} 2. d4 {[%emt 0:00:09]} d5 {[%emt 0:00:04]} 3. Nd2 {[%emt 0:01:16]} a6 {[%emt 0:00:03]} 4. Ngf3 {[%emt 0:00:40]} Nf6 {[%emt 0:00:12]} 5. e5 {[%emt 0:00:34]} Nfd7 {[%emt 0:00:04]} 6. Bd3 {[%emt 0:01:24]} c5 {[%emt 0:00:04]} 7. c3 {[%emt 0:00:09]} Nc6 {[%emt 0:00:03]} 8. O-O {[%emt 0:02:11] C06: Französische Verteidigung (Tarrasch-Variante)} g5 {[%emt 0:00:26]} 9. b3 {[%emt 0:12:09]} g4 {[%emt 0:11:39]} 10. Ne1 {[%emt 0:00:09]} cxd4 {[%emt 0:25:54]} 11. cxd4 {[%emt 0:00:18]} Nxd4 {[%emt 0:04:52]} 12. Qxg4 {[%emt 0:11:16]} Nc6 {[%emt 0:00:43]} 13. f4 {[%emt 0:06:56]} Nc5 {[%emt 0:01:30]} 14. Bb2 $146 {[%emt 0:03:14]} (14. Qe2 $14) ({Vorgänger:} 14. Kh1 Qa5 15. Bc2 Nd4 {0-1 (58) Caspi,I (2460)-Nevednichy,V (2547) Rijeka 2010}) 14... Qb6 {[%emt 0:00:56]} 15. Rf2 {[%emt 0:13:16]} Na4 {[%emt 0:05:27]} 16. bxa4 {[%emt 0:03:20]} Bc5 {[%emt 0:00:43]} 17. Qg7 {[%emt 0:04:39]} Rf8 {[%emt 0:01:03]} 18. Nb3 {[%emt 0:01:00]} Bxf2+ {[%emt 0:00:46]} 19. Kh1 {[%emt 0:00:21]} Bxe1 {[%emt 0:09:06]} 20. Rxe1 {[%emt 0:00:23]} Qb4 {[%emt 0:00:49]} 21. Rc1 {[%emt 0:09:10]} Bd7 {[%emt 0:00:54]} 22. Qf6 {[%emt 0:03:20]} Rc8 {[%emt 0:02:14]} 23. h4 {[%emt 0:05:05]} Na5 {[%emt 0:02:26]} 24. Nxa5 {[%emt 0:02:32]} Qxb2 {[%emt 0:04:40]} 25. Rb1 {[%emt 0:03:57]} Rc1+ {[%emt 0:00:37]} 26. Rxc1 {[%emt 0:00:05]} Qxc1+ {[%emt 0:00:04]} 27. Kh2 {[%emt 0:00:05]} Qc7 {[%emt 0:02:43]} 28. Nb3 {[%emt 0:00:06]} Qd8 {[%emt 0:04:35]} 29. Qh6 {[%emt 0:01:51]} Qb6 $19 {[%emt 0:03:06]} 30. Bxh7 {[%emt 0:01:15]} Qf2 {[%emt 0:03:12]} 31. Qf6 {[%emt 0:02:24]} b6 {[%emt 0:06:43]} 32. h5 {[%emt 0:00:40]} d4 {[%emt 0:00:55]} 33. Be4 {[%emt 0:03:56]} Rg8 {[%emt 0:02:34]} 34. Bf3 {[%emt 0:03:19]} d3 {[%emt 0:01:06]} 35. h6 {[%emt 0:00:52]} Qg3+ {[%emt 0:00:04]} 36. Kh1 {[%emt 0:00:06]} Qg6 {[%emt 0:01:53]} 37. g4 {[%emt 0:01:37]} Qh7 {[%emt 0:01:20]} 38. Qh4 {[%emt 0:03:34]} Bxa4 {[%emt 0:00:49]} 39. Nd2 {[%emt 0:00:04]} Rh8 {[%emt 0:02:19]} 40. g5 {[%emt 0:00:00]} Kf8 {[%emt 0:01:59]} 41. Be4 {[%emt 0:04:58]} f5 {[%emt 0:06:27]} 42. exf6 {[%emt 0:04:48]} Qc7 {[%emt 0:02:00]} 43. g6 {[%emt 0:03:32]} Qc1+ {[%emt 0:01:13]} 44. Kh2 {[%emt 0:00:04]} Qxd2+ {[%emt 0:00:36]} 45. Bg2 {[%emt 0:00:05]} Bc6 {[%emt 0:01:16]} 46. g7+ {[%emt 0:00:49]} Kf7 {[%emt 0:00:06]} 47. Qh5+ {[%emt 0:00:23]} Kg8 {[%emt 0:00:12]} 48. f7+ {[%emt 0:00:26]} 1-0

[Event "XXXIII Lower Silesian Cup 2017"]
[Site "Legnica"]
[Date "2017.12.11"]
[Round "7"]
[White "Sieciechowicz, Marcin"]
[Black "Tomczak, Mikolaj"]
[Result "1/2-1/2"]
[ECO "D27"]
[WhiteElo "2387"]
[BlackElo "2372"]
[Annotator "NA"]
[PlyCount "61"]
[EventDate "2017.??.??"]
[EventType "tourn"]
[EventCountry "POL"]
[SourceTitle "playchess.com"]
[Source "ChessBase"]
[SourceQuality "1"]
[TimeControl "40/5400+30:900+30"]

{[%evp 8,60,29,25,44,26,21,2,21,-6,21,0,-10,-2,0,-16,0,32767,32767,32767,32767,32767,32767,32767,32767,32767,32767,-24,-22,-22,-9,32767,32767,32767,32767,32767,-9,-24,-5,-16,-12,-16,32767,-18,32767,32767,32767,32767,-4,32767,-6,-12,32767,0,0]} 1. d4 {[%emt 0:00:00]} d5 {[%emt 0:00:07]} 2. c4 {[%emt 0:00:00]} dxc4 {[%emt 0:00:03]} 3. e3 {[%emt 0:00:22]} a6 {[%emt 0:00:10]} 4. Bxc4 {[%emt 0:00:30]} e6 {[%emt 0:00:04]} 5. Nf3 {[%emt 0:01:19]} c5 {[%emt 0:00:05]} 6. O-O {[%emt 0:01:08]} Nf6 {[%emt 0:00:05] LiveBook: 7007 Games} 7. Nc3 {[%emt 0:01:33]} b5 {[%emt 0:00:15]} 8. Be2 {[%emt 0:01:46]} Bb7 {[%emt 0:00:42]} 9. a3 {[%emt 0:04:00]} Nbd7 {[%emt 0:00:31]} 10. dxc5 {[%emt 0:03:47]} Bxc5 {[%emt 0:04:58]} 11. b4 {[%emt 0:02:21] D27: Queen's Gambit Accepted: Classical main line: 7 e4!? and 7 a4} Be7 {[%emt 0:00:12]} 12. Bb2 {[%emt 0:09:13]} O-O {[%emt 0:00:41]} (12... Rc8 13. Qb3 Qb6 14. Rab1 O-O 15. a4 Bxf3 16. Bxf3 Ne5 17. Be2 Nc4 18. Rbd1 Bd6 {0-1 (33) Bachmann,A (2593)-Mamedyarov,S (2736) Berlin 2015}) 13. Qb3 {[%emt 0:05:58]} Qb6 {[%emt 0:01:07]} 14. Nd4 {[%emt 0:04:12]} Nd5 $146 {[%emt 0:12:13]} ({Predecessor:} 14... Rac8 15. Rac1 Ne5 16. Ba1 Nc4 17. Rfd1 Nd5 18. Nf5 exf5 19. Nxd5 Bxd5 20. Rxd5 {½-½ (21) Dunkelblum,A-Van Scheltinga,T Dublin 1957}) 15. Bf3 {[%emt 0:01:21]} Nxc3 {[%emt 0:02:52]} 16. Bxc3 {[%emt 0:00:41]} Rac8 {[%emt 0:03:38]} 17. Rfd1 {[%emt 0:05:19]} Rc7 {[%emt 0:07:10]} 18. Bb2 {[%emt 0:14:23]} Bf6 {[%emt 0:04:46]} 19. Bxb7 {[%emt 0:05:20]} Qxb7 {[%emt 0:00:25]} 20. a4 {[%emt 0:01:57]} bxa4 {[%emt 0:15:21]} 21. Qxa4 {[%emt 0:01:16]} Ra8 {[%emt 0:01:11]} 22. b5 {[%emt 0:14:15]} Nb6 {[%emt 0:14:46]} 23. bxa6 {[%emt 0:04:09]} Nxa4 {[%emt 0:00:12]} 24. axb7 {[%emt 0:00:03]} Rxb7 {[%emt 0:00:06]} 25. Bc3 {[%emt 0:01:49]} Rbb8 {[%emt 0:02:25]} 26. Be1 {[%emt 0:02:37]} Nb2 {[%emt 0:03:57]} 27. Rxa8 {[%emt 0:00:06]} Rxa8 {[%emt 0:00:05]} 28. Rd2 {[%emt 0:02:22]} Nc4 {[%emt 0:00:22]} 29. Rd1 {[%emt 0:00:50]} Rd8 {[%emt 0:00:23]} 30. Rc1 {[%emt 0:00:26]} Bxd4 $11 {[%emt 0:00:14]} 31. Rxc4 {[%emt 0:00:09]} 1/2-1/2